[Event "2nd Irena Warakomska Memorial-A"]
[Site "Suwalki"]
[Date "2018.08.03"]
[Round "4"]
[White "Lisowski, Krzysztof"]
[Black "Buraczewski, Rafal"]
[Result "1-0"]
[ECO "B12"]
[WhiteElo "2072"]
[BlackElo "2221"]
[Annotator "NA"]
[PlyCount "85"]
[EventDate "2018.08.01"]
[EventType "swiss"]
[EventCountry "POL"]
[SourceTitle "playchess.com"]
[Source "ChessBase"]
[SourceQuality "1"]
[TimeControl "40/5400+30:1800+30"]

1. e4 {[%emt 0:00:00]} c6 {[%emt 0:00:00]} 2. d4 {[%emt 0:01:46]} g6 {[%emt 0:00:06]} 3. f4 {[%emt 0:04:15]} d5 {[%emt 0:01:08]} 4. e5 {[%emt 0:01:54]} h5 5. Be2 {[%emt 0:16:20]} Nh6 {[%emt 0:00:59]} 6. Nf3 {[%emt 0:01:00]} Bg4 {[%emt 0:00:31]} 7. O-O {[%emt 0:08:24]} e6 8. Qd3 {[%emt 0:13:13]} Nf5 {[%emt 0:08:09]} 9. b3 {[%emt 0:08:11]} Qb6 {[%emt 0:00:44]} 10. Bb2 Bxf3 {[%emt 0:05:43]} 11. Bxf3 {[%emt 0:14:02]} c5 {[%emt 0:01:10]} 12. c4 {[%emt 0:04:08]} dxc4 {[%emt 0:06:32]} 13. Qxc4 {[%emt 0:00:18]} Nd7 14. Rc1 {[%emt 0:06:59]} Nxd4 {[%emt 0:05:27]} 15. Bxd4 {[%emt 0:01:27]} cxd4 {[%emt 0:00:05]} 16. Nd2 {[%emt 0:02:49]} Ba3 {[%emt 0:07:04]} 17. Rd1 Be7 {[%emt 0:13:04]} 18. Ne4 {[%emt 0:05:08]} O-O 19. Qxd4 {[%emt 0:01:02]} Nc5 {[%emt 0:03:45]} 20. Nd6 {[%emt 0:02:12]} Bxd6 {[%emt 0:03:21]} 21. exd6 a5 {[%emt 0:03:37]} 22. Rac1 {[%emt 0:00:56]} Rac8 23. Rc4 Nd7 {[%emt 0:14:18]} 24. Qxb6 {[%emt 0:06:18]} Nxb6 {[%emt 0:00:01]} 25. Rxc8 {[%emt 0:00:28]} Rxc8 {[%emt 0:00:33]} 26. Bxb7 {[%emt 0:00:10]} Rd8 {[%emt 0:00:28]} 27. Kf2 {[%emt 0:00:39]} Kf8 {[%emt 0:00:02]} 28. Ke3 {[%emt 0:00:25]} Rb8 {[%emt 0:00:07]} 29. Bc6 {[%emt 0:00:24]} Rc8 {[%emt 0:00:20]} 30. Bb7 {[%emt 0:01:42]} Rb8 {[%emt 0:00:07]} 31. Bc6 {[%emt 0:00:34]} Rc8 32. d7 {[%emt 0:00:40]} Rd8 {[%emt 0:00:37]} 33. Kd4 {[%emt 0:00:29]} Nxd7 {[%emt 0:00:31]} 34. Ke3 {[%emt 0:00:24]} Ke7 {[%emt 0:00:22]} 35. Bxd7 {[%emt 0:00:22]} Rxd7 {[%emt 0:01:33]} 36. Rxd7+ {[%emt 0:00:05]} Kxd7 {[%emt 0:00:02]} 37. Kd4 {[%emt 0:00:48]} Kd6 {[%emt 0:00:02]} 38. h4 {[%emt 0:00:19]} f6 {[%emt 0:00:47]} 39. a3 {[%emt 0:00:18]} Kc6 {[%emt 0:00:59]} 40. Kc4 {[%emt 0:00:00]} Kb6 {[%emt 0:00:00]} 41. a4 {[%emt 0:06:25]} Kc6 42. b4 {[%emt 0:00:37]} axb4 {[%emt 0:03:40]} 43. Kxb4 1-0

[Event "2nd Irena Warakomska Memorial-A"]
[Site "Suwalki"]
[Date "2018.08.03"]
[Round "4"]
[White "Sliwerski, Radoslaw"]
[Black "Popiol, Michal"]
[Result "0-1"]
[ECO "E62"]
[WhiteElo "1990"]
[BlackElo "2164"]
[Annotator "NA"]
[PlyCount "84"]
[EventDate "2018.08.01"]
[EventType "swiss"]
[EventCountry "POL"]
[SourceTitle "playchess.com"]
[Source "ChessBase"]
[SourceQuality "1"]
[TimeControl "40/5400+30:1800+30"]

1. d4 {[%emt 0:00:00]} Nf6 {[%emt 0:00:00]} 2. c4 {[%emt 0:00:00]} g6 {[%emt 0:00:00]} 3. g3 {[%emt 0:00:00]} Bg7 {[%emt 0:00:00]} 4. Bg2 {[%emt 0:00:00]} O-O {[%emt 0:00:00]} 5. Nc3 {[%emt 0:00:00]} d6 {[%emt 0:00:00]} 6. Nf3 {[%emt 0:00:00]} Nc6 {[%emt 0:00:00]} 7. O-O {[%emt 0:00:00]} Bf5 {[%emt 0:01:51]} 8. Ne1 {[%emt 0:02:37]} Qd7 {[%emt 0:13:08]} 9. e4 {[%emt 0:02:25]} Bh3 {[%emt 0:00:32]} 10. Nc2 {[%emt 0:02:14]} e5 {[%emt 0:10:03]} 11. d5 {[%emt 0:00:26]} Ne7 {[%emt 0:00:45]} 12. f3 {[%emt 0:03:15]} Nh5 {[%emt 0:09:28]} 13. Be3 {[%emt 0:18:14]} Bxg2 {[%emt 0:00:35]} 14. Kxg2 {[%emt 0:00:02]} f5 {[%emt 0:00:14]} 15. Qd2 {[%emt 0:03:39]} Nf6 {[%emt 0:02:27]} 16. h3 {[%emt 0:04:29]} c5 {[%emt 0:14:03]} 17. Bh6 {[%emt 0:21:48]} a6 {[%emt 0:11:13]} 18. a4 {[%emt 0:02:13]} Nh5 {[%emt 0:03:33]} 19. Bxg7 {[%emt 0:01:55]} Kxg7 {[%emt 0:00:37]} 20. Rg1 {[%emt 0:07:32]} f4 {[%emt 0:03:15]} 21. g4 {[%emt 0:00:16]} Ng3 {[%emt 0:00:04]} 22. Ne1 {[%emt 0:12:57]} h5 {[%emt 0:04:19]} 23. Nd3 {[%emt 0:01:31]} hxg4 {[%emt 0:07:02]} 24. hxg4 {[%emt 0:00:02]} g5 {[%emt 0:01:18]} 25. Nf2 {[%emt 0:01:55]} Ng6 {[%emt 0:03:50]} 26. Nh1 {[%emt 0:00:28]} Nxh1 {[%emt 0:01:28]} 27. Rxh1 {[%emt 0:00:27]} Rh8 {[%emt 0:00:03]} 28. Qf2 {[%emt 0:05:52]} Qc7 {[%emt 0:01:45]} 29. Rxh8 {[%emt 0:01:44]} Rxh8 {[%emt 0:00:05]} 30. Rh1 {[%emt 0:00:17]} Nh4+ {[%emt 0:01:21]} 31. Kf1 {[%emt 0:00:13]} Qb6 {[%emt 0:00:08]} 32. Qe2 {[%emt 0:00:24]} Qb3 {[%emt 0:01:07]} 33. Kf2 {[%emt 0:01:37]} Ng6 {[%emt 0:02:03]} 34. Rxh8 {[%emt 0:00:25]} Nxh8 {[%emt 0:00:37]} 35. Kf1 {[%emt 0:02:31]} Ng6 {[%emt 0:00:06]} 36. Kg1 {[%emt 0:00:28]} Nh4 {[%emt 0:00:14]} 37. Kf2 {[%emt 0:00:06]} Kf6 {[%emt 0:00:23]} 38. Kg1 {[%emt 0:00:41]} Ke7 {[%emt 0:00:05]} 39. Kf2 {[%emt 0:00:18]} Kd7 {[%emt 0:00:07]} 40. Kg1 {[%emt 0:00:00]} Kc7 {[%emt 0:00:00]} 41. Kf2 {[%emt 0:07:05]} Kb6 {[%emt 0:00:14]} 42. Qd2 {[%emt 0:02:05]} Qxc4 {[%emt 0:00:51]} 0-1

[Event "2nd Irena Warakomska Memorial-A"]
[Site "Suwalki"]
[Date "2018.08.03"]
[Round "4"]
[White "Maj, Pawel"]
[Black "Ocytko, Andrzej"]
[Result "1-0"]
[ECO "A36"]
[WhiteElo "1521"]
[BlackElo "2155"]
[Annotator "NA"]
[PlyCount "63"]
[EventDate "2018.08.01"]
[EventType "swiss"]
[EventCountry "POL"]
[SourceTitle "playchess.com"]
[Source "ChessBase"]
[SourceQuality "1"]
[TimeControl "40/5400+30:1800+30"]

1. c4 {[%emt 0:00:00]} c5 {[%emt 0:00:54]} 2. g3 {[%emt 0:00:00]} Nc6 {[%emt 0:00:09]} 3. Bg2 {[%emt 0:00:00]} g6 {[%emt 0:00:21]} 4. Nc3 {[%emt 0:00:12]} Bg7 {[%emt 0:00:06]} 5. e4 {[%emt 0:00:38]} e5 {[%emt 0:09:21]} 6. Nge2 {[%emt 0:00:31]} Nge7 {[%emt 0:00:27]} 7. O-O {[%emt 0:00:11]} d6 {[%emt 0:00:09]} 8. d3 {[%emt 0:00:46]} Be6 {[%emt 0:03:20]} 9. Nd5 {[%emt 0:01:49]} O-O {[%emt 0:04:59]} 10. f4 f5 {[%emt 0:09:18]} 11. Rb1 {[%emt 0:04:21]} Rb8 {[%emt 0:06:24]} 12. a3 {[%emt 0:16:05]} a5 {[%emt 0:05:19]} 13. Nec3 {[%emt 0:00:42]} h6 {[%emt 0:18:26]} 14. h3 {[%emt 0:04:55]} Qd7 {[%emt 0:01:02]} 15. Kh2 {[%emt 0:00:08]} b6 {[%emt 0:01:48]} 16. Qa4 {[%emt 0:07:01]} Qd8 17. Bd2 Nd4 {[%emt 0:21:31]} 18. b4 {[%emt 0:02:57]} Nxd5 {[%emt 0:00:41]} 19. Nxd5 {[%emt 0:05:24]} axb4 {[%emt 0:00:57]} 20. axb4 {[%emt 0:03:33]} Ra8 {[%emt 0:01:21]} 21. Qd1 {[%emt 0:00:52]} Bxd5 {[%emt 0:02:37]} 22. cxd5 {[%emt 0:01:49]} Ra2 23. fxe5 {[%emt 0:03:29]} dxe5 {[%emt 0:06:10]} 24. bxc5 {[%emt 0:02:13]} bxc5 {[%emt 0:00:05]} 25. exf5 {[%emt 0:04:18]} gxf5 {[%emt 0:00:35]} 26. Kh1 {[%emt 0:08:32]} Qd6 {[%emt 0:01:04]} 27. Rb7 {[%emt 0:05:31]} Qg6 {[%emt 0:03:59]} 28. Rg1 {[%emt 0:03:06]} e4 29. dxe4 {[%emt 0:03:28]} fxe4 {[%emt 0:02:25]} 30. Bf4 {[%emt 0:01:21]} Ne2 {[%emt 0:00:46]} 31. d6 {[%emt 0:03:46]} Kh8 {[%emt 0:00:44]} 32. Qd5 {[%emt 0:02:14]} 1-0

[Event "2nd Irena Warakomska Memorial-A"]
[Site "Suwalki"]
[Date "2018.08.04"]
[Round "5"]
[White "Socko, Bartosz"]
[Black "Kashlinskaya, Alina"]
[Result "1-0"]
[ECO "A22"]
[WhiteElo "2611"]
[BlackElo "2440"]
[Annotator "ChessBase"]
[PlyCount "151"]
[EventDate "2018.08.01"]
[EventType "swiss"]
[EventCountry "POL"]
[SourceTitle "playchess.com"]
[Source "ChessBase"]
[SourceQuality "1"]
[TimeControl "40/5400+30:1800+30"]

1. c4 {[%emt 0:00:00]} Nf6 {[%emt 0:00:00]} 2. Nc3 {[%emt 0:00:08]} e5 {[%emt 0:00:00]} 3. g3 {[%emt 0:00:08]} Bb4 {[%emt 0:00:07]} 4. Bg2 {[%emt 0:00:11]} O-O {[%emt 0:00:14]} 5. e4 {[%emt 0:00:49]} Nc6 {[%emt 0:00:31]} 6. Nge2 {[%emt 0:00:07]} d6 {[%emt 0:00:55]} 7. O-O {[%emt 0:00:14]} Bc5 {[%emt 0:01:05]} 8. d3 {[%emt 0:00:41]} a6 {[%emt 0:00:41]} 9. h3 {[%emt 0:02:25]} h6 {[%emt 0:13:03]} 10. Kh2 {[%emt 0:00:28]} b5 {[%emt 0:00:28]} 11. b3 {[%emt 0:10:41]} Nd4 {[%emt 0:03:42]} 12. Bb2 {[%emt 0:02:13]} c6 {[%emt 0:04:27]} 13. f4 {[%emt 0:01:11]} a5 {[%emt 0:14:34]} 14. Rc1 {[%emt 0:09:08]} a4 {[%emt 0:04:45]} 15. fxe5 {[%emt 0:03:09]} dxe5 {[%emt 0:04:47]} 16. cxb5 {[%emt 0:00:31]} axb3 {[%emt 0:03:04]} 17. axb3 {[%emt 0:02:49]} Be6 {[%emt 0:09:25]} 18. Nxd4 {[%emt 0:13:59]} Bxd4 {[%emt 0:00:40]} 19. bxc6 {[%emt 0:00:08]} Be3 {[%emt 0:09:29]} 20. Ra1 {[%emt 0:04:11]} Rc8 {[%emt 0:02:32]} 21. Ra6 {[%emt 0:02:40]} Bb6 {[%emt 0:05:46]} 22. Nd5 {[%emt 0:08:10]} Rxc6 {[%emt 0:00:25]} 23. Nxb6 {[%emt 0:02:39]} Rxb6 {[%emt 0:00:40]} 24. Rxb6 {[%emt 0:00:07]} Qxb6 {[%emt 0:00:03]} 25. Bxe5 {[%emt 0:00:14]} Nd7 {[%emt 0:01:20]} 26. Ba1 {[%emt 0:00:18]} Ra8 {[%emt 0:02:07]} 27. d4 {[%emt 0:02:07]} Bxb3 {[%emt 0:00:49]} 28. Qg4 {[%emt 0:03:54]} Be6 {[%emt 0:09:53]} 29. Qf3 {[%emt 0:03:23]} Rxa1 {[%emt 0:00:31]} 30. Rxa1 {[%emt 0:00:06]} Qxd4 {[%emt 0:00:03]} 31. Rd1 {[%emt 0:00:28]} Qb2 {[%emt 0:00:50]} 32. Qf4 {[%emt 0:01:48]} Ne5 {[%emt 0:00:47]} 33. Rd2 {[%emt 0:00:14]} Qc3 {[%emt 0:00:30]} 34. Rd6 {[%emt 0:00:13]} Kh7 {[%emt 0:01:22]} 35. Rd8 {[%emt 0:03:40]} Qb2 {[%emt 0:01:55]} 36. Qd2 {[%emt 0:00:26]} Qa3 {[%emt 0:00:21]} 37. Qd1 {[%emt 0:01:19]} Qc3 {[%emt 0:01:11]} 38. Qf1 {[%emt 0:01:15]} Qb2 {[%emt 0:00:37]} 39. Qf4 {[%emt 0:00:32]} Qc3 {[%emt 0:00:59]} 40. Rd1 {[%emt 0:00:00]} Qb2 {[%emt 0:00:00]} 41. Qd2 {[%emt 0:01:47]} Qb3 {[%emt 0:04:35]} 42. Rf1 {[%emt 0:00:40]} Qb5 {[%emt 0:07:29]} 43. Qc3 {[%emt 0:00:58]} Nd7 {[%emt 0:00:47]} 44. Rf2 {[%emt 0:00:39]} Qh5 {[%emt 0:00:57]} 45. Qf3 {[%emt 0:01:20]} Qc5 {[%emt 0:00:16]} 46. Qe2 {[%emt 0:02:55]} Ne5 {[%emt 0:00:31]} 47. Qc2 {[%emt 0:00:10]} Qe3 {[%emt 0:01:41]} 48. Rf4 {[%emt 0:02:15]} Qd4 {[%emt 0:00:58]} 49. Rf1 {[%emt 0:00:10]} Qb4 {[%emt 0:01:08]} 50. Rb1 {[%emt 0:00:42]} Qa3 {[%emt 0:01:31]} 51. Qb2 {[%emt 0:03:09]} Qd3 {[%emt 0:00:26]} 52. Rf1 {[%emt 0:05:32]} Nc4 {[%emt 0:01:07]} 53. Qb1 {[%emt 0:00:07]} Qd2 {[%emt 0:02:44]} 54. Qc1 {[%emt 0:00:38]} Qd4 {[%emt 0:00:59]} 55. Rd1 {[%emt 0:01:38]} Qf2 {[%emt 0:00:43]} 56. Qf4 {[%emt 0:00:11]} Qb2 {[%emt 0:00:22]} 57. Kh1 {[%emt 0:03:29]} Qe2 {[%emt 0:01:38]} 58. Bf3 {[%emt 0:03:53]} Qc2 {[%emt 0:04:20]} 59. e5 {[%emt 0:01:49]} Qc3 {[%emt 0:04:32]} 60. Rc1 {[%emt 0:04:02]} Qb3 {[%emt 0:00:17]} 61. h4 {[%emt 0:01:41]} g6 {[%emt 0:01:37]} 62. Re1 {[%emt 0:08:01]} Qc3 {[%emt 0:00:35]} 63. Re2 {[%emt 0:00:09]} h5 {[%emt 0:01:31]} 64. Kh2 {[%emt 0:00:06]} Qd3 {[%emt 0:00:52]} 65. Qe4 {[%emt 0:01:51]} Qd1 {[%emt 0:05:00]} 66. Rc2 {[%emt 0:02:12]} Nd2 {[%emt 0:00:57]} 67. Qxg6+ {[%emt 0:02:09]} Kxg6 {[%emt 0:00:37]} 68. Bxd1 {[%emt 0:00:06]} Nf1+ {[%emt 0:00:01]} 69. Kg1 {[%emt 0:00:07]} Ne3 {[%emt 0:00:04]} 70. Rc1 {[%emt 0:00:31]} Bg4 {[%emt 0:01:22]} 71. Bb3 {[%emt 0:01:11]} Nf5 {[%emt 0:00:11]} 72. Rc6+ {[%emt 0:01:59]} Kg7 {[%emt 0:00:01]} 73. Rc7 {[%emt 0:00:12]} Nxg3 {[%emt 0:00:09]} 74. e6 {[%emt 0:01:07]} Nf5 {[%emt 0:00:05]} 75. Rxf7+ {[%emt 0:00:30]} Kg6 {[%emt 0:00:16]} 76. Bc2 {[%emt 0:00:08]} 1-0

[Event "2nd Irena Warakomska Memorial-A"]
[Site "Suwalki"]
[Date "2018.08.04"]
[Round "5"]
[White "Markowski, Tomasz"]
[Black "Ulybin, Mikhail"]
[Result "1/2-1/2"]
[ECO "A36"]
[WhiteElo "2562"]
[BlackElo "2512"]
[Annotator "RC"]
[PlyCount "97"]
[EventDate "2018.08.01"]
[EventType "swiss"]
[EventCountry "POL"]
[SourceTitle "playchess.com"]
[Source "ChessBase"]
[SourceQuality "1"]
[TimeControl "40/5400+30:1800+30"]

1. c4 {[%emt 0:00:00]} c5 {[%emt 0:04:41]} 2. g3 {[%emt 0:00:00]} Nc6 {[%emt 0:01:13]} 3. Bg2 {[%emt 0:00:00]} g6 {[%emt 0:01:06]} 4. Nc3 {[%emt 0:00:00]} Bg7 {[%emt 0:00:44]} 5. Rb1 {[%emt 0:00:00]} b6 {[%emt 0:10:52]} 6. Nf3 {[%emt 0:00:03]} Bb7 {[%emt 0:01:59]} 7. O-O {[%emt 0:00:06]} Nd4 {[%emt 0:09:46]} 8. e3 {[%emt 0:13:18]} Nxf3+ {[%emt 0:00:49]} 9. Bxf3 {[%emt 0:00:04]} Bxf3 {[%emt 0:15:20]} 10. Qxf3 {[%emt 0:00:11]} Nh6 {[%emt 0:04:29]} 11. b3 {[%emt 0:03:10]} O-O {[%emt 0:01:38]} 12. Bb2 {[%emt 0:00:03]} Nf5 {[%emt 0:07:06]} 13. Rfd1 {[%emt 0:03:41]} Rb8 {[%emt 0:12:21]} 14. d3 {[%emt 0:02:44]} d6 {[%emt 0:07:00]} 15. Qe4 {[%emt 0:08:45]} e6 {[%emt 0:09:36]} 16. Qf3 {[%emt 0:00:42]} a6 {[%emt 0:01:01]} 17. a4 {[%emt 0:00:48]} Qe7 {[%emt 0:02:48]} 18. Ne2 {[%emt 0:07:49]} Bxb2 {[%emt 0:02:16]} 19. Rxb2 {[%emt 0:00:05]} b5 {[%emt 0:01:54]} 20. axb5 {[%emt 0:00:28]} axb5 {[%emt 0:00:07]} 21. Ra2 {[%emt 0:00:10]} bxc4 {[%emt 0:01:19]} 22. bxc4 {[%emt 0:00:05]} Qb7 {[%emt 0:02:07]} 23. Qxb7 {[%emt 0:00:32]} Rxb7 {[%emt 0:00:02]} 24. Nc3 {[%emt 0:01:09]} Rd8 {[%emt 0:00:59]} 25. Ne4 {[%emt 0:04:09]} Kf8 {[%emt 0:00:18]} 26. Rda1 {[%emt 0:01:01]} Ke7 {[%emt 0:00:34]} 27. Ra7 {[%emt 0:01:32]} Rdd7 {[%emt 0:00:41]} 28. Ra8 {[%emt 0:01:27]} h5 {[%emt 0:00:27]} 29. h3 {[%emt 0:02:44]} Ng7 {[%emt 0:00:38]} 30. R1a6 {[%emt 0:05:45]} Rb1+ {[%emt 0:00:28]} 31. Kg2 {[%emt 0:00:04]} Ne8 {[%emt 0:00:23]} 32. Rc8 {[%emt 0:03:43]} Nf6 {[%emt 0:00:44]} 33. Ng5 {[%emt 0:01:28]} Ne8 {[%emt 0:00:30]} 34. Raa8 {[%emt 0:05:23]} Nc7 {[%emt 0:00:18]} 35. Ra7 {[%emt 0:00:36]} Ne8 {[%emt 0:00:23]} 36. Rxd7+ {[%emt 0:00:18]} Kxd7 {[%emt 0:00:02]} 37. Ra8 {[%emt 0:00:03]} Rd1 {[%emt 0:01:09]} 38. Nxf7 {[%emt 0:08:32]} Rxd3 {[%emt 0:00:11]} 39. Ng5 {[%emt 0:00:39]} e5 {[%emt 0:00:54]} 40. Ne4 {[%emt 0:00:00]} Rb3 {[%emt 0:00:00]} 41. Ra7+ {[%emt 0:12:25]} Nc7 {[%emt 0:06:02]} 42. Ra2 {[%emt 0:00:11]} Ke6 {[%emt 0:12:54]} 43. Rd2 {[%emt 0:03:19]} Rb6 {[%emt 0:00:50]} 44. Kf3 {[%emt 0:03:41]} Ne8 {[%emt 0:00:54]} 45. g4 {[%emt 0:02:46]} hxg4+ {[%emt 0:01:33]} 46. hxg4 {[%emt 0:00:32]} Rb4 {[%emt 0:01:17]} 47. Rc2 {[%emt 0:00:33]} Nf6 {[%emt 0:00:43]} 48. Nd2 {[%emt 0:01:14]} g5 {[%emt 0:06:48]} 49. Ra2 {[%emt 0:05:49]} 1/2-1/2

[Event "2nd Irena Warakomska Memorial-A"]
[Site "Suwalki"]
[Date "2018.08.04"]
[Round "5"]
[White "Kanarek, Marcel"]
[Black "Lewtak, Damian"]
[Result "0-1"]
[ECO "B00"]
[WhiteElo "2518"]
[BlackElo "2369"]
[Annotator "RC"]
[PlyCount "118"]
[EventDate "2018.08.01"]
[EventType "swiss"]
[EventCountry "POL"]
[SourceTitle "playchess.com"]
[Source "ChessBase"]
[SourceQuality "1"]
[TimeControl "40/5400+30:1800+30"]

1. e4 {[%emt 0:00:00]} Nc6 {[%emt 0:00:00]} 2. d4 {[%emt 0:00:29]} e5 {[%emt 0:01:43]} 3. dxe5 {[%emt 0:01:14]} Nxe5 {[%emt 0:00:28]} 4. Nf3 {[%emt 0:00:08]} d6 {[%emt 0:06:28]} 5. Nc3 {[%emt 0:02:58]} Bg4 {[%emt 0:02:44]} 6. Be2 {[%emt 0:00:20]} Nxf3+ {[%emt 0:00:12]} 7. gxf3 {[%emt 0:10:40]} Be6 {[%emt 0:09:21]} 8. Be3 {[%emt 0:00:13]} Nf6 {[%emt 0:00:09]} 9. f4 {[%emt 0:01:22]} g6 {[%emt 0:00:07]} 10. Bf3 {[%emt 0:08:11]} c6 {[%emt 0:00:59]} 11. Qd4 {[%emt 0:02:59]} c5 {[%emt 0:07:55]} 12. Qd3 {[%emt 0:05:35]} Qd7 {[%emt 0:03:49]} 13. a4 {[%emt 0:09:16]} Be7 {[%emt 0:03:41]} 14. a5 {[%emt 0:00:45]} Bg4 {[%emt 0:01:36]} 15. Bg2 {[%emt 0:14:31]} Bh3 {[%emt 0:00:22]} 16. Bf3 {[%emt 0:00:47]} Bg4 {[%emt 0:00:06]} 17. Bg2 {[%emt 0:01:30]} Bh3 {[%emt 0:00:06]} 18. Bxh3 {[%emt 0:00:26]} Qxh3 {[%emt 0:00:06]} 19. e5 {[%emt 0:03:03]} Qf3 {[%emt 0:13:04]} 20. exf6 {[%emt 0:19:16]} Qxh1+ {[%emt 0:00:09]} 21. Ke2 {[%emt 0:10:40]} Qxa1 {[%emt 0:00:10]} 22. Qe4 {[%emt 0:01:49]} O-O-O {[%emt 0:03:07]} 23. fxe7 {[%emt 0:00:09]} Rde8 {[%emt 0:00:05]} 24. Nd5 {[%emt 0:01:29]} Qxb2 {[%emt 0:02:18]} 25. Kf3 {[%emt 0:03:07]} Qb5 {[%emt 0:05:37]} 26. c4 {[%emt 0:00:50]} Qd7 {[%emt 0:01:19]} 27. a6 {[%emt 0:00:44]} bxa6 {[%emt 0:03:19]} 28. Nf6 {[%emt 0:00:42]} Qb7 {[%emt 0:02:19]} 29. Nd5 {[%emt 0:00:11]} Kb8 {[%emt 0:02:32]} 30. Bd2 {[%emt 0:00:01]} Qd7 {[%emt 0:02:56]} 31. Qb1+ {[%emt 0:00:45]} Kc8 {[%emt 0:01:44]} 32. Qa1 {[%emt 0:00:18]} Rhg8 {[%emt 0:05:50]} 33. Qxa6+ {[%emt 0:00:48]} Kb8 {[%emt 0:00:07]} 34. Ba5 {[%emt 0:01:10]} Rc8 {[%emt 0:00:08]} 35. Bc3 {[%emt 0:00:31]} Rge8 {[%emt 0:01:21]} 36. Bf6 {[%emt 0:00:22]} Qc6 {[%emt 0:01:51]} 37. Qa5 {[%emt 0:00:30]} Kb7 {[%emt 0:01:43]} 38. Kg2 {[%emt 0:00:36]} Rc7 {[%emt 0:05:02]} 39. Kg3 {[%emt 0:00:21]} Kc8 {[%emt 0:01:20]} 40. h3 {[%emt 0:00:00]} Qb7 {[%emt 0:00:00]} 41. Nxc7 {[%emt 0:22:10]} Qxc7 {[%emt 0:04:54]} 42. Qa6+ {[%emt 0:00:03]} Kd7 {[%emt 0:03:24]} 43. Qa4+ {[%emt 0:00:12]} Ke6 {[%emt 0:09:50]} 44. Qxe8 {[%emt 0:00:40]} Kxf6 {[%emt 0:00:05]} 45. Qh8+ {[%emt 0:04:00]} Kxe7 {[%emt 0:00:11]} 46. Qxh7 {[%emt 0:00:14]} Qb7 {[%emt 0:02:29]} 47. f5 {[%emt 0:03:25]} Qe4 {[%emt 0:00:43]} 48. Qg8 {[%emt 0:03:16]} Qxf5 {[%emt 0:00:12]} 49. Qa8 {[%emt 0:00:07]} Qd3+ {[%emt 0:00:31]} 50. f3 {[%emt 0:00:01]} Qxc4 {[%emt 0:00:08]} 51. Qxa7+ {[%emt 0:00:05]} Kf6 {[%emt 0:00:06]} 52. Qb8 {[%emt 0:00:15]} Qd4 {[%emt 0:00:30]} 53. Qh8+ {[%emt 0:00:46]} Ke7 {[%emt 0:00:06]} 54. Qc8 {[%emt 0:00:25]} g5 {[%emt 0:02:01]} 55. Qc7+ {[%emt 0:00:39]} Kf6 {[%emt 0:00:36]} 56. Qd8+ {[%emt 0:00:07]} Kg6 {[%emt 0:00:11]} 57. Qg8+ {[%emt 0:00:28]} Qg7 {[%emt 0:00:08]} 58. Qc8 {[%emt 0:00:23]} Qe5+ {[%emt 0:00:17]} 59. Kg2 {[%emt 0:00:07]} Kg7 {[%emt 0:00:08]} 0-1

[Event "2nd Irena Warakomska Memorial-A"]
[Site "Suwalki"]
[Date "2018.08.04"]
[Round "5"]
[White "Shtembuliak, Evgeny"]
[Black "Tomczak, Jacek"]
[Result "0-1"]
[ECO "A28"]
[WhiteElo "2518"]
[BlackElo "2596"]
[Annotator "ChessBase"]
[PlyCount "120"]
[EventDate "2018.08.01"]
[EventType "swiss"]
[EventCountry "POL"]
[SourceTitle "playchess.com"]
[Source "ChessBase"]
[SourceQuality "1"]
[TimeControl "40/5400+30:1800+30"]

1. c4 {[%emt 0:00:00]} e5 {[%emt 0:00:00]} 2. Nc3 {[%emt 0:00:24]} Nf6 {[%emt 0:00:12]} 3. Nf3 {[%emt 0:00:10]} Nc6 {[%emt 0:00:52]} 4. e3 {[%emt 0:00:12]} Be7 {[%emt 0:01:01]} 5. Qb3 {[%emt 0:05:03]} O-O {[%emt 0:04:21]} 6. Be2 {[%emt 0:00:57]} b6 {[%emt 0:14:42]} 7. O-O {[%emt 0:01:21]} Bb7 {[%emt 0:00:17]} 8. d3 {[%emt 0:06:59]} d6 9. a3 {[%emt 0:01:57]} Qd7 {[%emt 0:18:27]} 10. d4 {[%emt 0:03:23]} Qf5 {[%emt 0:06:15]} 11. d5 {[%emt 0:09:09]} Nb8 {[%emt 0:02:31]} 12. e4 {[%emt 0:03:44]} Nxe4 {[%emt 0:12:55]} 13. Qc2 {[%emt 0:00:05]} Ng3 {[%emt 0:00:06]} 14. Bd3 {[%emt 0:00:06]} e4 {[%emt 0:00:06]} 15. Nxe4 {[%emt 0:02:03]} Nxe4 {[%emt 0:00:03]} 16. Bxe4 {[%emt 0:00:06]} Qh5 {[%emt 0:00:04]} 17. Bf5 {[%emt 0:12:32]} Bc8 {[%emt 0:00:57]} 18. Bxc8 {[%emt 0:01:05]} Rxc8 {[%emt 0:00:03]} 19. Re1 {[%emt 0:00:52]} Bf8 {[%emt 0:08:29]} 20. b4 {[%emt 0:11:46]} c6 {[%emt 0:04:53]} 21. Qb3 {[%emt 0:04:09]} cxd5 {[%emt 0:03:42]} 22. cxd5 {[%emt 0:00:02]} Nd7 {[%emt 0:00:06]} 23. Bb2 {[%emt 0:01:23]} b5 {[%emt 0:00:29]} 24. Nd4 {[%emt 0:16:37]} a6 {[%emt 0:01:20]} 25. Nc6 {[%emt 0:01:23]} Nb6 {[%emt 0:01:51]} 26. Rad1 {[%emt 0:03:24]} Re8 {[%emt 0:00:13]} 27. Rxe8 {[%emt 0:00:05]} Rxe8 {[%emt 0:00:02]} 28. h3 {[%emt 0:00:05]} Qe2 {[%emt 0:05:46]} 29. Bc1 {[%emt 0:01:38]} Qc4 {[%emt 0:02:52]} 30. Qxc4 {[%emt 0:01:03]} Nxc4 {[%emt 0:00:03]} 31. Kf1 {[%emt 0:00:15]} Be7 {[%emt 0:04:36]} 32. Re1 {[%emt 0:12:09]} Kf8 {[%emt 0:00:04]} 33. f3 {[%emt 0:01:12]} h6 {[%emt 0:05:10]} 34. Re4 {[%emt 0:01:08]} Bg5 {[%emt 0:00:14]} 35. Bxg5 {[%emt 0:00:32]} hxg5 {[%emt 0:00:04]} 36. Ke2 {[%emt 0:00:22]} Nb6 {[%emt 0:01:23]} 37. Nd4 {[%emt 0:00:33]} g6 {[%emt 0:00:55]} 38. g3 {[%emt 0:00:26]} Nxd5 {[%emt 0:00:13]} 39. Rxe8+ {[%emt 0:00:14]} Kxe8 {[%emt 0:00:02]} 40. Kd3 {[%emt 0:00:00]} Kd7 {[%emt 0:00:00]} 41. Nc2 {[%emt 0:01:30]} Nf6 {[%emt 0:04:16]} 42. Nd4 {[%emt 0:00:51]} Nd5 {[%emt 0:03:33]} 43. Nc2 {[%emt 0:01:34]} Nc7 {[%emt 0:01:54]} 44. Ne3 {[%emt 0:03:20]} d5 {[%emt 0:01:17]} 45. Nc2 {[%emt 0:03:40]} Ne6 {[%emt 0:01:48]} 46. Ke3 {[%emt 0:08:42]} Kd6 {[%emt 0:00:45]} 47. f4 {[%emt 0:00:12]} gxf4+ {[%emt 0:02:52]} 48. gxf4 {[%emt 0:00:01]} Ke7 {[%emt 0:00:28]} 49. Kf3 {[%emt 0:00:22]} Kf6 {[%emt 0:01:20]} 50. Ne3 {[%emt 0:00:24]} Nd4+ {[%emt 0:00:28]} 51. Kg4 {[%emt 0:00:04]} Ke6 {[%emt 0:00:07]} 52. Kg5 {[%emt 0:00:45]} Nf5 {[%emt 0:03:51]} 53. Nd1 {[%emt 0:02:46]} d4 {[%emt 0:00:33]} 54. Nf2 {[%emt 0:00:04]} Nd6 {[%emt 0:00:50]} 55. h4 {[%emt 0:01:07]} Kd5 {[%emt 0:01:52]} 56. Kh6 {[%emt 0:00:07]} Kc4 {[%emt 0:02:03]} 57. Kg5 {[%emt 0:00:38]} d3 {[%emt 0:00:44]} 58. f5 {[%emt 0:00:26]} Nxf5 {[%emt 0:00:26]} 59. h5 {[%emt 0:00:04]} d2 {[%emt 0:00:23]} 60. h6 {[%emt 0:00:03]} Nxh6 {[%emt 0:00:04]} 0-1